fUSD/lending_fUSD_20260509
["ID","MTS","AMOUNT","RATE_DAILY","PERIOD"]
[421919742,1778332290000,-5100.0,0.0004177,38]
[421919753,1778332290000,-500.0,0.0004177,120]
[421919737,1778332290000,-5134.0,0.0004177,120]
[421919736,1778332290000,-5000.0,0.0004177,120]
[421919710,1778332290000,-100000.0,0.0004177,55]
[421919721,1778332290000,-502.35521438,0.0004177,12]
[421919712,1778332290000,-100000.0,0.0004177,45]
[421919720,1778332290000,-500.0,0.0004177,12]
[421919717,1778332290000,-500.0,0.0004177,12]
[421919715,1778332290000,-1000.0,0.0004177,30]
[421919716,1778332290000,-4107.0,0.0004177,120]
[421919718,1778332290000,-500.0,0.0004177,12]
[421919714,1778332290000,-18696.0,0.0004177,30]
[421919723,1778332290000,-8300.0,0.0004177,30]
[421919733,1778332290000,-102403.57597434,0.0004177,31]
[421919719,1778332290000,-500.0,0.0004177,12]
[421919725,1778332290000,-30000.0,0.0004177,120]
[421919722,1778332290000,-7500.0,0.0004177,30]
[421919745,1778332290000,-500.0,0.0004177,120]
[421919734,1778332290000,-5000.0,0.0004177,120]
[421919735,1778332290000,-5000.0,0.0004177,120]
[421919729,1778332290000,-5000.0,0.0004177,120]
[421919726,1778332290000,-43925.2569115,0.0004177,120]
[421919728,1778332290000,-5000.0,0.0004177,120]
[421919732,1778332290000,-5000.0,0.0004177,120]
[421919727,1778332290000,-5000.0,0.0004177,120]
[421919730,1778332290000,-5000.0,0.0004177,120]
[421919731,1778332290000,-5000.0,0.0004177,120]
[421919724,1778332290000,-30000.0,0.0004177,120]
[421919786,1778332291000,-154.71776492,0.0004177,120]
[421919785,1778332291000,-292.72812752,0.0004177,120]
[421919788,1778332291000,-616.52730409,0.0004177,120]
[421919789,1778332291000,-176.68888154,0.0004177,120]
[421919787,1778332291000,-204.7114925,0.0004177,120]
[421919792,1778332291000,-583.77260629,0.0004177,120]
[421919790,1778332291000,-176.43305419,0.0004177,120]
[421919791,1778332291000,-260.76233633,0.0004177,120]
[421919804,1778332291000,-153.8530905,0.0004177,120]
[421919800,1778332291000,-395.93758041,0.0004177,120]
[421919797,1778332291000,-274.4957944,0.0004177,120]
[421919794,1778332291000,-303.57163703,0.0004177,30]
[421919801,1778332291000,-168.88456551,0.0004177,120]
[421919795,1778332291000,-214.5658508,0.0004177,120]
[421919803,1778332291000,-260.50322464,0.0004177,120]
[421919784,1778332291000,-188.68300193,0.0004177,120]
[421919798,1778332291000,-500.0,0.0004177,120]
[421919799,1778332291000,-420.0661185,0.0004177,120]
[421919782,1778332291000,-233.84436251,0.0004177,120]
[421919781,1778332291000,-565.12217922,0.0004177,120]
[421919793,1778332291000,-177.41814349,0.0004177,120]
[421919802,1778332291000,-236.49027773,0.0004177,120]
[421919769,1778332291000,-260.87321214,0.0004177,120]
[421919768,1778332291000,-248.11340068,0.0004177,120]
[421919766,1778332291000,-363.1626296,0.0004177,120]
[421919767,1778332291000,-227.62381947,0.0004177,120]
[421919765,1778332291000,-2466.71,0.0004177,120]
[421919770,1778332291000,-221.60342132,0.0004177,120]
[421919773,1778332291000,-200.48506054,0.0004177,120]
[421919776,1778332291000,-162.67844776,0.0004177,120]
[421919771,1778332291000,-331.1,0.0004177,120]
[421919775,1778332291000,-224.81787924,0.0004177,120]
[421919777,1778332291000,-286.43979372,0.0004177,120]
[421919780,1778332291000,-500.0,0.0004177,120]
[421919772,1778332291000,-500.0,0.0004177,120]
[421919774,1778332291000,-204.58747988,0.0004177,120]
[421919778,1778332291000,-155.86472061,0.0004177,120]
[421919779,1778332291000,-167.87069305,0.0004177,120]
[421919783,1778332291000,-617.83377438,0.0004177,120]
[421919796,1778332291000,-203.99770094,0.0004177,120]
[421919806,1778332291000,-253.69115024,0.0004177,120]
[421919807,1778332291000,-404.68441462,0.0004177,120]
[421919830,1778332291000,-231.77431016,0.0004177,120]
[421919829,1778332291000,-213.69725737,0.0004177,120]
[421919832,1778332291000,-219.76079576,0.0004177,120]
[421919833,1778332291000,-549.78998615,0.0004177,120]
[421919831,1778332291000,-383.22037307,0.0004177,120]
[421919835,1778332291000,-204.29400667,0.0004177,120]
[421919836,1778332291000,-194.36382107,0.0004177,120]
[421919838,1778332291000,-180.80058845,0.0004177,120]
[421919837,1778332291000,-206.28672299,0.0004177,120]
[421919840,1778332291000,-239.11824805,0.0004177,120]
[421919841,1778332291000,-211.15396149,0.0004177,120]
[421919839,1778332291000,-295.50525805,0.0004177,120]
[421919842,1778332291000,-500.0,0.0004177,120]
[421919844,1778332291000,-287.75157274,0.0004177,120]
[421919843,1778332291000,-319.99155403,0.0004177,120]
[421919845,1778332291000,-152.82267381,0.0004177,120]
[421919805,1778332291000,-341.59065807,0.0004177,120]
[421919828,1778332291000,-276.04104777,0.0004177,120]
[421919824,1778332291000,-337.0177,0.0004177,120]
[421919834,1778332291000,-151.57597432,0.0004177,108]
[421919827,1778332291000,-186.22306111,0.0004177,120]
[421919816,1778332291000,-500.0,0.0004177,120]
[421919826,1778332291000,-164.13982723,0.0004177,120]
[421919808,1778332291000,-267.14908034,0.0004177,120]
[421919809,1778332291000,-183.86516204,0.0004177,120]
[421919813,1778332291000,-500.0,0.0004177,120]
[421919810,1778332291000,-176.85765153,0.0004177,120]
[421919817,1778332291000,-500.0,0.0004177,120]
[421919815,1778332291000,-500.0,0.0004177,120]
[421919814,1778332291000,-500.0,0.0004177,120]
[421919811,1778332291000,-193.30695979,0.0004177,120]
[421919812,1778332291000,-527.87446514,0.0004177,120]
[421919823,1778332291000,-500.0,0.0004177,120]
[421919819,1778332291000,-500.0,0.0004177,120]
[421919818,1778332291000,-207.71608308,0.0004177,120]
[421919821,1778332291000,-500.0,0.0004177,120]
[421919822,1778332291000,-500.0,0.0004177,120]
[421919820,1778332291000,-251.18726022,0.0004177,120]
[421919825,1778332291000,-390.29335256,0.0004177,120]
[421919881,1778332292000,-212.9197515,0.0004177,120]
[421919880,1778332292000,-158.81775039,0.0004177,120]
[421919878,1778332292000,-353.85787079,0.0004177,120]
[421919876,1778332292000,-500.0,0.0004177,120]
[421919875,1778332292000,-237.24687602,0.0004177,120]
[421919869,1778332292000,-463.43845616,0.0004177,120]
[421919872,1778332292000,-169.14125654,0.0004177,120]
[421919883,1778332292000,-617.33329879,0.0004177,120]
[421919874,1778332292000,-231.66381391,0.0004177,120]
[421919879,1778332292000,-162.93531088,0.0004177,120]
[421919897,1778332292000,-208.84412948,0.0004177,120]
[421919882,1778332292000,-277.16796227,0.0004177,120]
[421919885,1778332292000,-170.16634877,0.0004177,120]
[421919886,1778332292000,-500.0,0.0004177,120]
[421919887,1778332292000,-500.0,0.0004177,120]
[421919877,1778332292000,-158.44060025,0.0004177,120]
[421919889,1778332292000,-245.02348575,0.0004177,120]
[421919899,1778332292000,-227.95581372,0.0004177,120]
[421919888,1778332292000,-500.0,0.0004177,120]
[421919870,1778332292000,-279.72096582,0.0004177,120]
[421919884,1778332292000,-212.70850019,0.0004177,120]
[421919873,1778332292000,-189.66407817,0.0004177,120]
[421919848,1778332292000,-529.8147875,0.0004177,120]
[421919867,1778332292000,-153.42168874,0.0004177,120]
[421919893,1778332292000,-294.109,0.0004177,120]
[421919846,1778332292000,-185.46290443,0.0004177,120]
[421919847,1778332292000,-1721.41,0.0004177,120]
[421919849,1778332292000,-335.3849302,0.0004177,120]
[421919850,1778332292000,-368.09693085,0.0004177,120]
[421919852,1778332292000,-241.37183629,0.0004177,120]
[421919851,1778332292000,-183.13979546,0.0004177,120]
[421919854,1778332292000,-257.69385621,0.0004177,120]
[421919853,1778332292000,-162.19922852,0.0004177,120]
[421919856,1778332292000,-165.45756526,0.0004177,120]
[421919855,1778332292000,-233.7870214,0.0004177,120]
[421919857,1778332292000,-156.82893475,0.0004177,120]
[421919860,1778332292000,-221.71865858,0.0004177,120]
[421919859,1778332292000,-500.0,0.0004177,120]
[421919861,1778332292000,-162.39249616,0.0004177,120]
[421919858,1778332292000,-500.0,0.0004177,120]
[421919863,1778332292000,-258.31822279,0.0004177,120]
[421919864,1778332292000,-286.00364226,0.0004177,120]
[421919862,1778332292000,-614.17679737,0.0004177,120]
[421919865,1778332292000,-263.58272821,0.0004177,120]
[421919866,1778332292000,-222.15607028,0.0004177,120]
[421919871,1778332292000,-259.93127115,0.0004177,120]
[421919895,1778332292000,-500.0,0.0004177,120]
[421919868,1778332292000,-948.408,0.0004177,120]
[421919890,1778332292000,-296.931,0.0004177,120]
[421919921,1778332292000,-286.13731495,0.0004177,120]
[421919920,1778332292000,-172.37871485,0.0004177,120]
[421919922,1778332292000,-276.33106467,0.0004177,120]
[421919923,1778332292000,-401.88241257,0.0004177,120]
[421919925,1778332292000,-150.35231202,0.0004177,120]
[421919930,1778332292000,-160.37811287,0.0004177,120]
[421919929,1778332292000,-252.8,0.0004177,30]
[421919927,1778332292000,-256.59279568,0.0004177,120]
[421919933,1778332292000,-376.58836779,0.0004177,120]
[421919926,1778332292000,-203.29174605,0.0004177,120]
[421919932,1778332292000,-201.46939341,0.0004177,120]
[421919934,1778332292000,-443.69360146,0.0004177,120]
[421919931,1778332292000,-167.00059271,0.0004177,120]
[421919935,1778332292000,-175.77803404,0.0004177,120]
[421919937,1778332292000,-155.46332103,0.0004177,120]
[421919936,1778332292000,-215.34012795,0.0004177,120]
[421919939,1778332292000,-153.0842387,0.0004177,120]
[421919938,1778332292000,-212.27159105,0.0004177,120]
[421919940,1778332292000,-217.75941046,0.0004177,120]
[421919941,1778332292000,-215.26803705,0.0004177,120]
[421919896,1778332292000,-198.29223318,0.0004177,120]
[421919919,1778332292000,-500.0,0.0004177,120]
[421919918,1778332292000,-500.0,0.0004177,120]
[421919928,1778332292000,-379.2,0.0004177,120]
[421919915,1778332292000,-319.49776968,0.0004177,120]
[421919892,1778332292000,-500.0,0.0004177,120]
[421919942,1778332292000,-500.0,0.0004177,120]
[421919894,1778332292000,-302.69010128,0.0004177,120]
[421919891,1778332292000,-153.7726763,0.0004177,120]
[421919898,1778332292000,-267.29781512,0.0004177,120]
[421919902,1778332292000,-500.0,0.0004177,120]
[421919911,1778332292000,-429.65414272,0.0004177,120]
[421919905,1778332292000,-234.92538131,0.0004177,120]
[421919900,1778332292000,-500.0,0.0004177,120]
[421919904,1778332292000,-500.0,0.0004177,120]
[421919912,1778332292000,-260.3376252,0.0004177,120]
[421919901,1778332292000,-500.0,0.0004177,120]
[421919913,1778332292000,-178.23773645,0.0004177,120]
[421919909,1778332292000,-500.0,0.0004177,120]
[421919910,1778332292000,-500.0,0.0004177,120]
[421919906,1778332292000,-350.50787354,0.0004177,120]
[421919907,1778332292000,-184.12655804,0.0004177,120]
[421919916,1778332292000,-500.0,0.0004177,120]
[421919908,1778332292000,-436.35086182,0.0004177,120]
[421919914,1778332292000,-159.37449905,0.0004177,120]
[421919924,1778332292000,-227.85813667,0.0004177,120]
[421919917,1778332292000,-500.0,0.0004177,120]
[421919903,1778332292000,-217.50030325,0.0004177,120]
[421919984,1778332293000,-152.61123592,0.0004177,120]
[421919975,1778332293000,-192.13915683,0.0004177,120]
[421919982,1778332293000,-160.97504756,0.0004177,120]
[421919983,1778332293000,-306.07485048,0.0004177,120]
[421919980,1778332293000,-182.2227883,0.0004177,15]
[421919985,1778332293000,-170.34157046,0.0004177,120]
[421919977,1778332293000,-150.61372522,0.0004177,120]
[421919978,1778332293000,-214.44143235,0.0004177,120]
[421919976,1778332293000,-152.08716807,0.0004177,120]
[421919979,1778332293000,-170.68966259,0.0004177,120]
[421919981,1778332293000,-150.93428619,0.0004177,120]
[421919986,1778332293000,-174.34702894,0.0004177,120]
[421919987,1778332293000,-175.70134913,0.0004177,120]
[421919997,1778332293000,-176.54092031,0.0004177,120]
[421919999,1778332293000,-173.17080296,0.0004177,120]
[421919988,1778332293000,-150.31321243,0.0004177,120]
[421919991,1778332293000,-155.44416038,0.0004177,120]
[421919990,1778332293000,-151.22880755,0.0004177,120]
[421919989,1778332293000,-186.6687043,0.0004177,120]
[421919992,1778332293000,-162.33445304,0.0004177,120]
[421919993,1778332293000,-305.78,0.0004177,120]
[421919994,1778332293000,-186.80632363,0.0004177,120]
[421919996,1778332293000,-162.51747123,0.0004177,120]
[421920002,1778332293000,-161.35990255,0.0004177,120]
[421920001,1778332293000,-184.95299633,0.0004177,120]
[421919972,1778332293000,-259.71679134,0.0004177,60]
[421919998,1778332293000,-205765.6133021,0.0004177,30]
[421919971,1778332293000,-151.91326338,0.0004177,120]
[421919945,1778332293000,-158.55023567,0.0004177,120]
[421919967,1778332293000,-168.43904195,0.0004177,120]
[421919948,1778332293000,-619.55221124,0.0004177,120]
[421919950,1778332293000,-298.1823535,0.0004177,120]
[421919949,1778332293000,-194.48378986,0.0004177,120]
[421919944,1778332293000,-351.83722097,0.0004177,120]
[421919947,1778332293000,-226.93495239,0.0004177,11]
[421919946,1778332293000,-167.12037105,0.0004177,120]
[421920011,1778332293000,-155.58549023,0.0004177,120]
[421919943,1778332293000,-227.26226014,0.0004177,120]
[421919951,1778332293000,-157.294441,0.0004177,120]
[421919961,1778332293000,-181.04892187,0.0004177,120]
[421919960,1778332293000,-154.37699263,0.0004177,120]
[421919955,1778332293000,-188.71764445,0.0004177,120]
[421919962,1778332293000,-315.73762402,0.0004177,120]
[421919968,1778332293000,-223.01362675,0.0004177,120]
[421919954,1778332293000,-296.58427049,0.0004177,120]
[421919952,1778332293000,-180.19482851,0.0004177,120]
[421919953,1778332293000,-224.87894467,0.0004177,120]
[421919959,1778332293000,-225.11195483,0.0004177,120]
[421919958,1778332293000,-198.74516133,0.0004177,120]
[421919957,1778332293000,-152.70730211,0.0004177,90]
[421919963,1778332293000,-211.14397412,0.0004177,120]
[421919965,1778332293000,-177.33943876,0.0004177,120]
[421919964,1778332293000,-213.87001415,0.0004177,120]
[421919969,1778332293000,-219.16805749,0.0004177,31]
[421919973,1778332293000,-155.09664308,0.0004177,120]
[421919974,1778332293000,-208.76384886,0.0004177,120]
[421919966,1778332293000,-215.32303378,0.0004177,120]
[421919970,1778332293000,-169.27359666,0.0004177,120]
[421919956,1778332293000,-244.50854263,0.0004177,120]
[421920000,1778332293000,-541441.955,0.0004177,120]
[421919995,1778332293000,-166.38934039,0.0004177,120]
[421920008,1778332293000,-162.44890612,0.0004177,120]
[421920039,1778332293000,-356.03452183,0.0004177,120]
[421920049,1778332293000,-1091.78765158,0.0004177,120]
[421920050,1778332293000,-162.00263644,0.0004177,120]
[421920046,1778332293000,-11449.43350136,0.0004177,90]
[421920038,1778332293000,-155.39321016,0.0004177,120]
[421920042,1778332293000,-172.65641315,0.0004177,120]
[421920040,1778332293000,-172508.70047455,0.0004177,120]
[421920043,1778332293000,-704.22208494,0.0004177,120]
[421920045,1778332293000,-185.42747614,0.0004177,120]
[421920041,1778332293000,-191.08767409,0.0004177,30]
[421920047,1778332293000,-1053.31665344,0.0004177,120]
[421920044,1778332293000,-1702.53788693,0.0004177,30]
[421920055,1778332293000,-3119.06,0.0004177,120]
[421920033,1778332293000,-500.99698554,0.0004177,120]
[421920062,1778332293000,-6732.0,0.0004177,120]
[421920053,1778332293000,-180.13327543,0.0004177,120]
[421920054,1778332293000,-20088.10364847,0.0004177,120]
[421920051,1778332293000,-171.82312707,0.0004177,120]
[421920052,1778332293000,-2792.89514804,0.0004177,60]
[421920058,1778332293000,-500.0,0.0004177,7]
[421920057,1778332293000,-500.0,0.0004177,7]
[421920061,1778332293000,-523.07293477,0.0004177,120]
[421920059,1778332293000,-500.0,0.0004177,7]
[421920060,1778332293000,-164.771309,0.0004177,120]
[421920063,1778332293000,-1075539.87,0.0004177,30]
[421920065,1778332293000,-500.0,0.0004177,120]
[421920064,1778332293000,-500.0,0.0004177,120]
[421920010,1778332293000,-170.71411972,0.0004177,120]
[421920056,1778332293000,-500.0,0.0004177,7]
[421920037,1778332293000,-181.84151004,0.0004177,30]
[421920048,1778332293000,-3743.89843113,0.0004177,120]
[421920034,1778332293000,-185.19529736,0.0004177,120]
[421920032,1778332293000,-500.0,0.0004177,120]
[421920003,1778332293000,-183.94649888,0.0004177,120]
[421920009,1778332293000,-187.96721618,0.0004177,120]
[421920005,1778332293000,-155.9083806,0.0004177,120]
[421920007,1778332293000,-171.85961998,0.0004177,120]
[421920006,1778332293000,-151.62919107,0.0004177,120]
[421920013,1778332293000,-1088.0,0.0004177,120]
[421920015,1778332293000,-601.78926719,0.0004177,90]
[421920023,1778332293000,-500.0,0.0004177,120]
[421920016,1778332293000,-150.83578249,0.0004177,120]
[421920012,1778332293000,-153.00838062,0.0004177,120]
[421920014,1778332293000,-152.84201584,0.0004177,120]
[421920018,1778332293000,-161.86150724,0.0004177,120]
[421920020,1778332293000,-195.0,0.0004177,120]
[421920004,1778332293000,-187.51290241,0.0004177,120]
[421920019,1778332293000,-155.0,0.0004177,120]
[421920022,1778332293000,-500.0,0.0004177,120]
[421920036,1778332293000,-339.09555079,0.0004177,120]
[421920035,1778332293000,-5678.48730191,0.0004177,120]
[421920030,1778332293000,-349.23828828,0.0004177,120]
[421920029,1778332293000,-151.69318044,0.0004177,120]
[421920027,1778332293000,-1725.40673424,0.0004177,60]
[421920031,1778332293000,-206.63681395,0.0004177,120]
[421920028,1778332293000,-252.77819635,0.0004177,90]
[421920026,1778332293000,-163.02246681,0.0004177,20]
[421920024,1778332293000,-537.60080343,0.0004177,120]
[421920021,1778332293000,-500.0,0.0004177,120]
[421920017,1778332293000,-171.32998079,0.0004177,120]
[421920025,1778332293000,-248.65291301,0.0004177,30]
[421920107,1778332294000,-3314.64,0.0004177,120]
[421920109,1778332294000,-3314.64,0.0004177,120]
[421920098,1778332294000,-500.0,0.0004177,120]
[421920099,1778332294000,-195.38923451,0.0004177,120]
[421920104,1778332294000,-3314.64,0.0004177,120]
[421920106,1778332294000,-3314.64,0.0004177,120]
[421920110,1778332294000,-3314.64,0.0004177,120]
[421920101,1778332294000,-166.5248375,0.0004177,120]
[421920103,1778332294000,-3314.64,0.0004177,120]
[421920100,1778332294000,-10002.68878393,0.0004177,30]
[421920108,1778332294000,-3314.64,0.0004177,120]
[421920105,1778332294000,-3314.64,0.0004177,120]
[421920122,1778332294000,-3314.64,0.0004177,120]
[421920116,1778332294000,-3314.64,0.0004177,120]
[421920111,1778332294000,-3314.64,0.0004177,120]
[421920114,1778332294000,-3314.64,0.0004177,120]
[421920117,1778332294000,-3314.64,0.0004177,120]
[421920115,1778332294000,-3314.64,0.0004177,120]
[421920113,1778332294000,-3314.64,0.0004177,120]
[421920118,1778332294000,-3314.64,0.0004177,120]
[421920119,1778332294000,-3314.64,0.0004177,120]
[421920121,1778332294000,-3314.64,0.0004177,120]
[421920120,1778332294000,-3314.64,0.0004177,120]
[421920124,1778332294000,-3314.64,0.0004177,120]
[421920127,1778332294000,-711.85,0.0004177,120]
[421920128,1778332294000,-711.85,0.0004177,120]
[421920088,1778332294000,-500.0,0.0004177,120]
[421920112,1778332294000,-3314.64,0.0004177,120]
[421920093,1778332294000,-500.0,0.0004177,120]
[421920125,1778332294000,-3314.82957985,0.0004177,120]
[421920089,1778332294000,-500.0,0.0004177,120]
[421920066,1778332294000,-500.0,0.0004177,120]
[421920067,1778332294000,-500.0,0.0004177,120]
[421920070,1778332294000,-500.0,0.0004177,120]
[421920069,1778332294000,-500.0,0.0004177,120]
[421920068,1778332294000,-500.0,0.0004177,120]
[421920071,1778332294000,-500.0,0.0004177,120]
[421920072,1778332294000,-500.0,0.0004177,120]
[421920073,1778332294000,-517.97476103,0.0004177,120]
[421920075,1778332294000,-333.09,0.0004177,120]
[421920074,1778332294000,-235.0,0.0004177,120]
[421920077,1778332294000,-500.0,0.0004177,120]
[421920078,1778332294000,-500.0,0.0004177,120]
[421920076,1778332294000,-206.06,0.0004177,60]
[421920096,1778332294000,-500.0,0.0004177,120]
[421920085,1778332294000,-500.0,0.0004177,120]
[421920081,1778332294000,-500.0,0.0004177,120]
[421920082,1778332294000,-500.0,0.0004177,120]
[421920080,1778332294000,-500.0,0.0004177,120]
[421920084,1778332294000,-500.0,0.0004177,120]
[421920083,1778332294000,-500.0,0.0004177,120]
[421920087,1778332294000,-500.0,0.0004177,120]
[421920097,1778332294000,-500.0,0.0004177,120]
[421920086,1778332294000,-500.0,0.0004177,120]
[421920095,1778332294000,-500.0,0.0004177,120]
[421920091,1778332294000,-500.0,0.0004177,120]
[421920090,1778332294000,-500.0,0.0004177,120]
[421920092,1778332294000,-500.0,0.0004177,120]
[421920094,1778332294000,-500.0,0.0004177,120]
[421920079,1778332294000,-500.0,0.0004177,120]
[421920123,1778332294000,-3314.64,0.0004177,120]
[421920102,1778332294000,-3314.64,0.0004177,120]
[421920134,1778332294000,-711.85,0.0004177,120]
[421920162,1778332294000,-500.0,0.0004177,120]
[421920166,1778332294000,-500.0,0.0004177,120]
[421920163,1778332294000,-500.0,0.0004177,120]
[421920173,1778332294000,-500.0,0.0004177,120]
[421920164,1778332294000,-500.0,0.0004177,120]
[421920174,1778332294000,-500.0,0.0004177,120]
[421920165,1778332294000,-500.0,0.0004177,120]
[421920168,1778332294000,-500.0,0.0004177,120]
[421920167,1778332294000,-500.0,0.0004177,120]
[421920170,1778332294000,-500.0,0.0004177,120]
[421920172,1778332294000,-500.0,0.0004177,120]
[421920171,1778332294000,-500.0,0.0004177,120]
[421920169,1778332294000,-500.0,0.0004177,120]
[421920156,1778332294000,-306.76441422,0.0004177,120]
[421920186,1778332294000,-500.0,0.0004177,120]
[421920187,1778332294000,-500.0,0.0004177,120]
[421920176,1778332294000,-500.0,0.0004177,120]
[421920178,1778332294000,-500.0,0.0004177,120]
[421920188,1778332294000,-500.0,0.0004177,120]
[421920180,1778332294000,-247.30445707,0.0004177,120]
[421920183,1778332294000,-500.0,0.0004177,120]
[421920177,1778332294000,-500.0,0.0004177,120]
[421920182,1778332294000,-500.0,0.0004177,120]
[421920179,1778332294000,-500.0,0.0004177,120]
[421920175,1778332294000,-500.0,0.0004177,120]
[421920184,1778332294000,-500.0,0.0004177,120]
[421920189,1778332294000,-500.0,0.0004177,120]
[421920133,1778332294000,-711.85,0.0004177,120]
[421920181,1778332294000,-167.11114606,0.0004177,120]
[421920152,1778332294000,-500.0,0.0004177,120]
[421920185,1778332294000,-500.0,0.0004177,120]
[421920158,1778332294000,-445.6502245,0.0004177,120]
[421920159,1778332294000,-5067178.79,0.0004177,120]
[421920126,1778332294000,-711.85,0.0004177,120]
[421920130,1778332294000,-711.85,0.0004177,120]
[421920135,1778332294000,-711.85,0.0004177,120]
[421920129,1778332294000,-711.85,0.0004177,120]
[421920131,1778332294000,-711.85,0.0004177,120]
[421920147,1778332294000,-711.85,0.0004177,120]
[421920137,1778332294000,-711.85,0.0004177,120]
[421920142,1778332294000,-711.85,0.0004177,120]
[421920148,1778332294000,-711.85,0.0004177,120]
[421920145,1778332294000,-711.85,0.0004177,120]
[421920138,1778332294000,-711.85,0.0004177,120]
[421920136,1778332294000,-711.85,0.0004177,120]
[421920140,1778332294000,-711.85,0.0004177,120]
[421920132,1778332294000,-711.85,0.0004177,120]
[421920141,1778332294000,-711.85,0.0004177,120]
[421920139,1778332294000,-711.85,0.0004177,120]
[421920155,1778332294000,-500.0,0.0004177,120]
[421920151,1778332294000,-500.0,0.0004177,120]
[421920160,1778332294000,-500.0,0.0004177,120]
[421920190,1778332294000,-500.0,0.0004177,120]
[421920150,1778332294000,-500.0,0.0004177,120]
[421920161,1778332294000,-500.0,0.0004177,120]
[421920153,1778332294000,-500.0,0.0004177,120]
[421920149,1778332294000,-711.88766416,0.0004177,120]
[421920154,1778332294000,-500.0,0.0004177,120]
[421920144,1778332294000,-711.85,0.0004177,120]
[421920146,1778332294000,-711.85,0.0004177,120]
[421920157,1778332294000,-1758.00863,0.0004177,120]
[421920143,1778332294000,-711.85,0.0004177,120]
[421920219,1778332295000,-500.0,0.0004177,120]
[421920235,1778332295000,-500.0,0.0004177,120]
[421920228,1778332295000,-632.15,0.0004177,120]
[421920233,1778332295000,-172.88374726,0.0004177,30]
[421920217,1778332295000,-500.0,0.0004177,120]
[421920216,1778332295000,-2077.44534362,0.0004177,120]
[421920221,1778332295000,-500.0,0.0004177,120]
[421920214,1778332295000,-2077.41,0.0004177,120]
[421920218,1778332295000,-550.51977431,0.0004177,120]
[421920215,1778332295000,-2077.41,0.0004177,120]
[421920232,1778332295000,-5086.28528999,0.0004177,22]
[421920224,1778332295000,-291527.31859332,0.0004177,2]
[421920229,1778332295000,-500.0,0.0004177,120]
[421920225,1778332295000,-57294.42845326,0.0004177,120]
[421920231,1778332295000,-501.67132249,0.0004177,120]
[421920226,1778332295000,-1017122.0,0.0004177,90]
[421920230,1778332295000,-500.0,0.0004177,120]
[421920227,1778332295000,-151.66384818,0.0004177,120]
[421920245,1778332295000,-500.0,0.0004177,120]
[421920237,1778332295000,-500.0,0.0004177,120]
[421920220,1778332295000,-500.0,0.0004177,120]
[421920246,1778332295000,-500.0,0.0004177,120]
[421920234,1778332295000,-500.0,0.0004177,120]
[421920222,1778332295000,-500.0,0.0004177,120]
[421920195,1778332295000,-500.0,0.0004177,120]
[421920213,1778332295000,-2077.41,0.0004177,120]
[421920247,1778332295000,-500.0,0.0004177,120]
[421920199,1778332295000,-2077.41,0.0004177,120]
[421920192,1778332295000,-285.97732,0.0004177,120]
[421920200,1778332295000,-2077.41,0.0004177,120]
[421920197,1778332295000,-280.13595155,0.0004177,120]
[421920198,1778332295000,-2077.41,0.0004177,120]
[421920193,1778332295000,-381.35,0.0004177,120]
[421920191,1778332295000,-500.0,0.0004177,120]
[421920196,1778332295000,-500.0,0.0004177,120]
[421920194,1778332295000,-500.0,0.0004177,120]
[421920212,1778332295000,-2077.41,0.0004177,120]
[421920201,1778332295000,-2077.41,0.0004177,120]
[421920203,1778332295000,-2077.41,0.0004177,120]
[421920207,1778332295000,-2077.41,0.0004177,120]
[421920202,1778332295000,-2077.41,0.0004177,120]
[421920210,1778332295000,-2077.41,0.0004177,120]
[421920208,1778332295000,-2077.41,0.0004177,120]
[421920205,1778332295000,-2077.41,0.0004177,120]
[421920209,1778332295000,-2077.41,0.0004177,120]